[Event "*** SCC Grand Prix: Titled Tuesday Blitz"]
[Site "Chess.com"]
[Date "2020.09.08"]
[Round "7"]
[White "Gloomy_Wanderer"]
[Black "KNCP_719"]
[Result "1-0"]
[WhiteElo "2742"]
[BlackElo "2564"]
[TimeControl "180+1"]
[EndTime "11:18:13 PDT"]
[Termination "Gloomy_Wanderer won on time"]

1. d4 {[%clk 0:03:00.9]} 1... d5 {[%clk 0:02:59.4]} 2. c4 {[%clk 0:03:00.8]}
2... c6 {[%clk 0:02:59.5]} 3. cxd5 {[%clk 0:03:00.8]} 3... cxd5 {[%clk
0:03:00.4]} 4. Nc3 {[%clk 0:03:01.7]} 4... Nf6 {[%clk 0:03:00.4]} 5. Bg5 {[%clk
0:03:01.5]} 5... Nc6 {[%clk 0:02:36.9]} 6. Bxf6 {[%clk 0:03:01.4]} 6... gxf6
{[%clk 0:02:31.7]} 7. e3 {[%clk 0:03:01.8]} 7... e6 {[%clk 0:02:23.9]} 8. Bd3
{[%clk 0:03:01.5]} 8... Bd6 {[%clk 0:02:20]} 9. Nf3 {[%clk 0:03:01.2]} 9... a6
{[%clk 0:02:13.3]} 10. Rc1 {[%clk 0:03:00.4]} 10... f5 {[%clk 0:02:09.8]} 11. g3
{[%clk 0:03:00.4]} 11... Bd7 {[%clk 0:02:07.5]} 12. O-O {[%clk 0:02:59.5]} 12...
O-O {[%clk 0:02:04.5]} 13. Nh4 {[%clk 0:02:59.5]} 13... Be7 {[%clk 0:01:53.4]}
14. Ng2 {[%clk 0:02:56.8]} 14... Bd6 {[%clk 0:01:42]} 15. Qh5 {[%clk 0:02:53.2]}
15... Qf6 {[%clk 0:01:36.8]} 16. Nh4 {[%clk 0:02:53.4]} 16... h6 {[%clk
0:01:07.7]} 17. Kh1 {[%clk 0:02:27.3]} 17... Ne7 {[%clk 0:01:00.4]} 18. f4
{[%clk 0:02:21.1]} 18... Kg7 {[%clk 0:00:51]} 19. Qe2 {[%clk 0:01:56.5]} 19...
Ng6 {[%clk 0:00:47.2]} 20. Nf3 {[%clk 0:01:56.6]} 20... Rac8 {[%clk 0:00:41.1]}
21. a3 {[%clk 0:01:54.7]} 21... Qd8 {[%clk 0:00:32.4]} 22. Rc2 {[%clk
0:01:52.9]} 22... Be7 {[%clk 0:00:30.5]} 23. Rfc1 {[%clk 0:01:51]} 23... h5
{[%clk 0:00:30.7]} 24. h4 {[%clk 0:01:51.2]} 24... Kh6 {[%clk 0:00:21.4]} 25.
Qd1 {[%clk 0:01:41.8]} 25... b5 {[%clk 0:00:20.1]} 26. Be2 {[%clk 0:01:41.1]}
26... Rh8 {[%clk 0:00:11.3]} 27. Ng5 {[%clk 0:01:33.8]} 27... Kg7 {[%clk
0:00:10.9]} 28. Na2 {[%clk 0:01:24.6]} 28... Rxc2 {[%clk 0:00:10]} 29. Rxc2
{[%clk 0:01:25.5]} 29... Bxg5 {[%clk 0:00:09]} 30. fxg5 {[%clk 0:01:24.1]} 30...
Qb8 {[%clk 0:00:09]} 31. Kg2 {[%clk 0:01:18.9]} 31... a5 {[%clk 0:00:05.1]} 32.
b4 {[%clk 0:01:14.6]} 32... axb4 {[%clk 0:00:03.3]} 33. axb4 {[%clk 0:01:14.7]}
33... Qd6 {[%clk 0:00:02.8]} 34. Qd2 {[%clk 0:01:10]} 34... e5 {[%clk
0:00:02.8]} 35. dxe5 {[%clk 0:01:07.5]} 35... Nxe5 {[%clk 0:00:03.7]} 36. Qd4
{[%clk 0:01:07.6]} 36... Kg6 {[%clk 0:00:03.5]} 37. Rc5 {[%clk 0:01:04.5]} 37...
Be6 {[%clk 0:00:02.8]} 38. Nc3 {[%clk 0:01:02.5]} 38... Nc6 {[%clk 0:00:02.5]}
39. Qxh8 {[%clk 0:00:58.5]} 1-0

[Event "*** SCC Grand Prix: Titled Tuesday Blitz"]
[Site "Chess.com"]
[Date "2020.09.08"]
[Round "7"]
[White "valeriocarnicelli"]
[Black "Ginger_GM"]
[Result "1-0"]
[WhiteElo "2487"]
[BlackElo "2593"]
[TimeControl "180+1"]
[EndTime "11:18:13 PDT"]
[Termination "valeriocarnicelli won by resignation"]

1. e4 {[%clk 0:03:00.9]} 1... c5 {[%clk 0:02:58.8]} 2. Nf3 {[%clk 0:03:00.9]}
2... d6 {[%clk 0:02:58]} 3. d4 {[%clk 0:03:01.2]} 3... cxd4 {[%clk 0:02:57.9]}
4. Nxd4 {[%clk 0:03:02.1]} 4... Nf6 {[%clk 0:02:57.9]} 5. Nc3 {[%clk 0:03:02.6]}
5... g6 {[%clk 0:02:57.9]} 6. f3 {[%clk 0:03:02.7]} 6... Bg7 {[%clk 0:02:57.7]}
7. Be3 {[%clk 0:03:03.2]} 7... Nc6 {[%clk 0:02:58.1]} 8. Qd2 {[%clk 0:03:03.1]}
8... Bd7 {[%clk 0:02:58.3]} 9. O-O-O {[%clk 0:03:03.3]} 9... Rc8 {[%clk
0:02:55.9]} 10. Kb1 {[%clk 0:03:03.1]} 10... Ne5 {[%clk 0:02:55.9]} 11. h4
{[%clk 0:03:02.6]} 11... O-O {[%clk 0:02:55.3]} 12. g4 {[%clk 0:03:01.6]} 12...
Qa5 {[%clk 0:02:51.6]} 13. Nd5 {[%clk 0:02:53.7]} 13... Qxd2 {[%clk 0:02:44]}
14. Nxe7+ {[%clk 0:02:52.3]} 14... Kh8 {[%clk 0:02:44.2]} 15. Bxd2 {[%clk
0:02:47.1]} 15... Rce8 {[%clk 0:02:40.7]} 16. Bb4 {[%clk 0:02:34.5]} 16... Rxe7
{[%clk 0:02:30.3]} 17. Bxd6 {[%clk 0:02:34.4]} 17... Rfe8 {[%clk 0:02:12]} 18.
Be2 {[%clk 0:02:34.1]} 18... h5 {[%clk 0:02:01.7]} 19. g5 {[%clk 0:02:32.9]}
19... Ng8 {[%clk 0:02:00.1]} 20. Rd2 {[%clk 0:02:27.5]} 20... Nc6 {[%clk
0:01:54.4]} 21. Nxc6 {[%clk 0:02:23.8]} 21... Bxc6 {[%clk 0:01:55.3]} 22. Bxe7
{[%clk 0:02:23.5]} 22... Nxe7 {[%clk 0:01:49]} 23. Bc4 {[%clk 0:02:14.2]} 23...
Kg8 {[%clk 0:01:46.9]} 24. Rhd1 {[%clk 0:02:12.1]} 24... Kf8 {[%clk 0:01:44.3]}
25. Rd8 {[%clk 0:02:08.7]} 25... Be5 {[%clk 0:01:43.1]} 26. R8d3 {[%clk
0:01:39.2]} 26... Bg3 {[%clk 0:01:38.2]} 27. Rh1 {[%clk 0:01:38]} 27... b5
{[%clk 0:01:32.8]} 28. Bb3 {[%clk 0:01:36.8]} 28... a5 {[%clk 0:01:33.1]} 29. a3
{[%clk 0:01:35]} 29... Rb8 {[%clk 0:01:27.2]} 30. Rh3 {[%clk 0:01:34.1]} 30...
Be5 {[%clk 0:01:26.3]} 31. f4 {[%clk 0:01:28.2]} 31... Bc7 {[%clk 0:01:07.7]}
32. Rc3 {[%clk 0:01:20.4]} 32... b4 {[%clk 0:01:03]} 33. axb4 {[%clk 0:01:18.8]}
33... Rxb4 {[%clk 0:00:56.3]} 34. f5 {[%clk 0:01:16.2]} 34... Be5 {[%clk
0:00:46.1]} 35. Rc5 {[%clk 0:01:14.1]} 35... Bd6 {[%clk 0:00:24.5]} 36. Rxa5
{[%clk 0:01:13.7]} 36... gxf5 {[%clk 0:00:24.5]} 37. exf5 {[%clk 0:01:10.4]}
37... Rf4 {[%clk 0:00:11]} 38. f6 {[%clk 0:01:07.7]} 38... Ng6 {[%clk
0:00:09.2]} 39. Ra6 {[%clk 0:01:06.3]} 39... Ne5 {[%clk 0:00:06.7]} 40. Re3
{[%clk 0:01:06]} 40... Ke8 {[%clk 0:00:05.6]} 41. Rxc6 {[%clk 0:01:04.7]} 41...
Kd7 {[%clk 0:00:04.8]} 42. Ra6 {[%clk 0:01:02.4]} 42... Rf1+ {[%clk 0:00:04.7]}
43. Ka2 {[%clk 0:01:02.3]} 43... Nc6 {[%clk 0:00:05.6]} 44. Ba4 {[%clk
0:01:01.2]} 1-0

[Event "*** SCC Grand Prix: Titled Tuesday Blitz"]
[Site "Chess.com"]
[Date "2020.09.08"]
[Round "7"]
[White "Bodnar_Mykola"]
[Black "KubaGepard"]
[Result "0-1"]
[WhiteElo "2516"]
[BlackElo "2417"]
[TimeControl "180+1"]
[EndTime "11:18:13 PDT"]
[Termination "KubaGepard won by checkmate"]

1. d4 {[%clk 0:03:00.9]} 1... d5 {[%clk 0:02:59.4]} 2. c4 {[%clk 0:03:00.3]}
2... dxc4 {[%clk 0:02:41.3]} 3. Nf3 {[%clk 0:02:59.2]} 3... c5 {[%clk
0:02:40.9]} 4. d5 {[%clk 0:02:53.7]} 4... Nf6 {[%clk 0:02:39.1]} 5. Nc3 {[%clk
0:02:52.3]} 5... e6 {[%clk 0:02:37.9]} 6. e4 {[%clk 0:02:49.7]} 6... exd5 {[%clk
0:02:33.9]} 7. e5 {[%clk 0:02:45.9]} 7... Ne4 {[%clk 0:02:30.8]} 8. Nxe4 {[%clk
0:02:44.4]} 8... dxe4 {[%clk 0:02:28.9]} 9. Qxd8+ {[%clk 0:02:45.3]} 9... Kxd8
{[%clk 0:02:29]} 10. Ng5 {[%clk 0:02:46.2]} 10... Be6 {[%clk 0:02:29.2]} 11.
Nxe6+ {[%clk 0:02:41.5]} 11... fxe6 {[%clk 0:02:30.1]} 12. Bxc4 {[%clk 0:02:42]}
12... Ke7 {[%clk 0:02:28.2]} 13. Bg5+ {[%clk 0:02:40.9]} 13... Kf7 {[%clk
0:02:27.4]} 14. f3 {[%clk 0:02:35.8]} 14... Be7 {[%clk 0:02:24.6]} 15. Be3
{[%clk 0:02:25.2]} 15... Nc6 {[%clk 0:02:20.7]} 16. f4 {[%clk 0:02:17.9]} 16...
Nd4 {[%clk 0:02:18.1]} 17. O-O-O {[%clk 0:02:06.4]} 17... Rhd8 {[%clk
0:02:07.9]} 18. g4 {[%clk 0:02:02.9]} 18... b5 {[%clk 0:01:58.7]} 19. Bxd4
{[%clk 0:01:50.3]} 19... cxd4 {[%clk 0:01:54.1]} 20. Bb3 {[%clk 0:01:46.9]}
20... d3 {[%clk 0:01:41.7]} 21. Rhe1 {[%clk 0:01:41.1]} 21... Rd4 {[%clk
0:01:34.1]} 22. Re3 {[%clk 0:01:34.3]} 22... Bh4 {[%clk 0:01:31]} 23. Kb1 {[%clk
0:01:32.1]} 23... Bf2 {[%clk 0:01:30.2]} 24. Rh3 {[%clk 0:01:19]} 24... e3
{[%clk 0:01:28.2]} 25. Rf3 {[%clk 0:01:18]} 25... e2 {[%clk 0:01:25.9]} 26. Rxf2
{[%clk 0:01:18]} 26... exd1=Q+ {[%clk 0:01:23.2]} 27. Bxd1 {[%clk 0:01:18.9]}
27... Ke7 {[%clk 0:01:20.1]} 28. f5 {[%clk 0:01:18.8]} 28... Rf8 {[%clk
0:01:19]} 29. Kc1 {[%clk 0:01:16.8]} 29... Re4 {[%clk 0:01:12.2]} 30. Rd2 {[%clk
0:01:10.3]} 30... exf5 {[%clk 0:01:10.1]} 31. gxf5 {[%clk 0:01:10.1]} 31... Rxf5
{[%clk 0:01:04.1]} 32. Rxd3 {[%clk 0:01:10.3]} 32... Rfxe5 {[%clk 0:01:03.7]}
33. Kd2 {[%clk 0:01:02.1]} 33... Rf4 {[%clk 0:01:01]} 34. Bf3 {[%clk 0:01:00]}
34... g5 {[%clk 0:00:59.7]} 35. h3 {[%clk 0:00:59.5]} 35... Re6 {[%clk
0:00:47.3]} 36. Kc2 {[%clk 0:00:56]} 36... Rc4+ {[%clk 0:00:43]} 37. Kb3 {[%clk
0:00:55.2]} 37... a5 {[%clk 0:00:43.5]} 38. Bd5 {[%clk 0:00:52]} 38... Rb4+
{[%clk 0:00:40.8]} 39. Ka3 {[%clk 0:00:52.2]} 39... Re5 {[%clk 0:00:39.7]} 40.
Bc6 {[%clk 0:00:48.2]} 40... Rc5 {[%clk 0:00:37.2]} 41. Bf3 {[%clk 0:00:42.3]}
41... Rf4 {[%clk 0:00:36.5]} 42. b3 {[%clk 0:00:40.7]} 42... Ke6 {[%clk
0:00:35.3]} 43. Bg4+ {[%clk 0:00:40.8]} 43... Ke5 {[%clk 0:00:35.2]} 44. Rd7
{[%clk 0:00:39.9]} 44... Rf2 {[%clk 0:00:34.7]} 45. b4 {[%clk 0:00:36.7]} 45...
Rc3# {[%clk 0:00:33.9]} 0-1

[Event "*** SCC Grand Prix: Titled Tuesday Blitz"]
[Site "Chess.com"]
[Date "2020.09.08"]
[Round "7"]
[White "GameOverBro"]
[Black "UCantHandleDenker"]
[Result "0-1"]
[WhiteElo "2462"]
[BlackElo "2604"]
[TimeControl "180+1"]
[EndTime "11:18:14 PDT"]
[Termination "UCantHandleDenker won by checkmate"]

1. e4 {[%clk 0:03:00.9]} 1... d6 {[%clk 0:02:59.9]} 2. d4 {[%clk 0:02:59.2]}
2... Nf6 {[%clk 0:03:00.3]} 3. Nc3 {[%clk 0:02:58.8]} 3... g6 {[%clk 0:03:00.6]}
4. Bc4 {[%clk 0:02:56.3]} 4... Bg7 {[%clk 0:03:00.5]} 5. Qe2 {[%clk 0:02:56.5]}
5... Nc6 {[%clk 0:02:59.2]} 6. d5 {[%clk 0:02:37.3]} 6... Ne5 {[%clk 0:02:49.8]}
7. Bb3 {[%clk 0:02:33]} 7... O-O {[%clk 0:02:45.1]} 8. f4 {[%clk 0:02:31.2]}
8... Ned7 {[%clk 0:02:40.9]} 9. e5 {[%clk 0:02:24.7]} 9... Ne8 {[%clk
0:02:33.8]} 10. e6 {[%clk 0:02:24.4]} 10... Nc5 {[%clk 0:02:29.4]} 11. exf7+
{[%clk 0:02:20.5]} 11... Rxf7 {[%clk 0:02:30.3]} 12. Nf3 {[%clk 0:02:19.9]}
12... Bg4 {[%clk 0:02:24.9]} 13. O-O {[%clk 0:02:17.7]} 13... Nf6 {[%clk
0:02:17.8]} 14. Be3 {[%clk 0:02:13.9]} 14... Nxb3 {[%clk 0:02:15.9]} 15. axb3
{[%clk 0:02:14.8]} 15... a6 {[%clk 0:02:14]} 16. Bd4 {[%clk 0:02:01.9]} 16...
Nh5 {[%clk 0:02:09.5]} 17. Bxg7 {[%clk 0:01:51]} 17... Kxg7 {[%clk 0:02:09.8]}
18. g3 {[%clk 0:01:40.7]} 18... Qd7 {[%clk 0:02:09.4]} 19. Qd2 {[%clk
0:01:34.8]} 19... Bxf3 {[%clk 0:02:06.4]} 20. Rxf3 {[%clk 0:01:34.2]} 20... Qg4
{[%clk 0:02:01.7]} 21. Raf1 {[%clk 0:01:32.5]} 21... Raf8 {[%clk 0:01:59.9]} 22.
Ne4 {[%clk 0:01:31.7]} 22... h6 {[%clk 0:01:48.8]} 23. Qc3+ {[%clk 0:01:29.4]}
23... Kg8 {[%clk 0:01:47.8]} 24. Qxc7 {[%clk 0:01:25.4]} 24... Nxf4 {[%clk
0:01:40.5]} 25. Qc4 {[%clk 0:00:55.1]} 25... Nh3+ {[%clk 0:01:02.1]} 26. Kg2
{[%clk 0:00:54.6]} 26... Rxf3 {[%clk 0:00:54.4]} 27. Nf6+ {[%clk 0:00:53.7]}
27... R8xf6 {[%clk 0:00:50.2]} 28. Qxg4 {[%clk 0:00:54.6]} 28... Rxf1 {[%clk
0:00:47.7]} 29. Kxh3 {[%clk 0:00:53.9]} 29... R1f5 {[%clk 0:00:45.2]} 30. Qc4
{[%clk 0:00:47.4]} 30... Kf7 {[%clk 0:00:43.6]} 31. Qc7 {[%clk 0:00:42.5]} 31...
Rf2 {[%clk 0:00:41.8]} 32. c4 {[%clk 0:00:39.7]} 32... Rxb2 {[%clk 0:00:40.2]}
33. Qxb7 {[%clk 0:00:39.7]} 33... Rff2 {[%clk 0:00:40]} 34. Qd7 {[%clk
0:00:25.7]} 34... Rbe2 {[%clk 0:00:39.8]} 35. c5 {[%clk 0:00:09.7]} 35... Rxh2+
{[%clk 0:00:37.3]} 36. Kg4 {[%clk 0:00:09.7]} 36... Kf6 {[%clk 0:00:36.2]} 37.
cxd6 {[%clk 0:00:08.7]} 37... h5+ {[%clk 0:00:35.7]} 38. Kf3 {[%clk 0:00:07.6]}
38... Rhf2# {[%clk 0:00:36]} 0-1

[Event "*** SCC Grand Prix: Titled Tuesday Blitz"]
[Site "Chess.com"]
[Date "2020.09.08"]
[Round "7"]
[White "Chessdreamer2020"]
[Black "DrMamaliga"]
[Result "1-0"]
[WhiteElo "2383"]
[BlackElo "2202"]
[TimeControl "180+1"]
[EndTime "11:18:14 PDT"]
[Termination "Chessdreamer2020 won by resignation"]

1. e4 {[%clk 0:03:00.9]} 1... e5 {[%clk 0:02:59.9]} 2. Nf3 {[%clk 0:03:00.8]}
2... Nc6 {[%clk 0:03:00.4]} 3. d3 {[%clk 0:02:59.6]} 3... Nf6 {[%clk 0:02:57]}
4. Nbd2 {[%clk 0:02:58.8]} 4... g6 {[%clk 0:02:56.7]} 5. Be2 {[%clk 0:02:59.3]}
5... Bg7 {[%clk 0:02:56.1]} 6. O-O {[%clk 0:02:59.8]} 6... O-O {[%clk
0:02:56.7]} 7. c3 {[%clk 0:02:58.5]} 7... d5 {[%clk 0:02:54.7]} 8. b4 {[%clk
0:02:57.2]} 8... a6 {[%clk 0:02:48.2]} 9. Re1 {[%clk 0:02:57.2]} 9... d4 {[%clk
0:02:47.7]} 10. Bb2 {[%clk 0:02:55.1]} 10... dxc3 {[%clk 0:02:44.7]} 11. Bxc3
{[%clk 0:02:54.4]} 11... Be6 {[%clk 0:02:44.8]} 12. Nxe5 {[%clk 0:02:41.9]}
12... Nxe5 {[%clk 0:02:32.1]} 13. Bxe5 {[%clk 0:02:41.5]} 13... Qd7 {[%clk
0:02:32.2]} 14. Nf3 {[%clk 0:02:37.8]} 14... Rad8 {[%clk 0:02:28.4]} 15. Qc2
{[%clk 0:02:36.6]} 15... c6 {[%clk 0:02:28.1]} 16. a3 {[%clk 0:02:35.5]} 16...
h5 {[%clk 0:02:22.8]} 17. Qb2 {[%clk 0:02:33.5]} 17... Ne8 {[%clk 0:02:19.4]}
18. Bxg7 {[%clk 0:02:31.4]} 18... Nxg7 {[%clk 0:02:20.3]} 19. Ne5 {[%clk
0:02:29.7]} 19... Qc7 {[%clk 0:02:18.2]} 20. Rac1 {[%clk 0:02:24.4]} 20... h4
{[%clk 0:02:14.6]} 21. Bg4 {[%clk 0:02:16.3]} 21... Bxg4 {[%clk 0:02:10.4]} 22.
Nxg4 {[%clk 0:02:15.8]} 22... Rxd3 {[%clk 0:02:08.8]} 23. Qf6 {[%clk 0:02:01.7]}
23... Qd8 {[%clk 0:02:02.2]} 24. Qf4 {[%clk 0:01:57]} 24... Ne6 {[%clk
0:01:55.3]} 25. Qh6 {[%clk 0:01:52.6]} 25... Qg5 {[%clk 0:01:46]} 26. Qxg5
{[%clk 0:01:50]} 26... Nxg5 {[%clk 0:01:46.9]} 27. f4 {[%clk 0:01:24.4]} 27...
Ne6 {[%clk 0:01:45.9]} 28. f5 {[%clk 0:01:22.2]} 28... Ng5 {[%clk 0:01:42.1]}
29. Rc5 {[%clk 0:01:07.8]} 29... Nh7 {[%clk 0:01:08.4]} 30. a4 {[%clk
0:01:01.5]} 30... Re8 {[%clk 0:01:03.8]} 31. fxg6 {[%clk 0:00:53]} 31... fxg6
{[%clk 0:01:03.7]} 32. e5 {[%clk 0:00:53]} 32... Rd4 {[%clk 0:01:01.2]} 33. h3
{[%clk 0:00:47]} 33... Rxb4 {[%clk 0:00:58.9]} 34. a5 {[%clk 0:00:47.5]} 34...
Rb5 {[%clk 0:00:57.6]} 35. Rc4 {[%clk 0:00:42.6]} 35... Rxa5 {[%clk 0:00:54.7]}
36. Rf1 {[%clk 0:00:42.2]} 36... Rf8 {[%clk 0:00:52.7]} 37. Rd1 {[%clk
0:00:32.7]} 37... Rd5 {[%clk 0:00:51.5]} 38. Rb1 {[%clk 0:00:32.4]} 38... Rf7
{[%clk 0:00:49.9]} 39. Nh6+ {[%clk 0:00:31.5]} 39... Kg7 {[%clk 0:00:47.6]} 40.
Nxf7 {[%clk 0:00:32]} 40... Kxf7 {[%clk 0:00:48.5]} 41. Rxb7+ {[%clk 0:00:31.9]}
41... Kg8 {[%clk 0:00:40.8]} 42. Rxc6 {[%clk 0:00:31.4]} 42... Rxe5 {[%clk
0:00:40]} 43. Rxg6+ {[%clk 0:00:30.9]} 43... Kh8 {[%clk 0:00:40]} 44. Rb8+
{[%clk 0:00:28.2]} 1-0

[Event "*** SCC Grand Prix: Titled Tuesday Blitz"]
[Site "Chess.com"]
[Date "2020.09.08"]
[Round "7"]
[White "Thereisnof0rk"]
[Black "ARMQUEEN"]
[Result "0-1"]
[WhiteElo "2251"]
[BlackElo "2458"]
[TimeControl "180+1"]
[EndTime "11:18:15 PDT"]
[Termination "ARMQUEEN won on time"]

1. d4 {[%clk 0:03:00.9]} 1... d5 {[%clk 0:02:59.4]} 2. c4 {[%clk 0:03:00.6]}
2... dxc4 {[%clk 0:02:57.8]} 3. Nf3 {[%clk 0:03:00.4]} 3... Nf6 {[%clk
0:02:54.6]} 4. e3 {[%clk 0:02:59.8]} 4... e6 {[%clk 0:02:43.2]} 5. Bxc4 {[%clk
0:02:59.6]} 5... a6 {[%clk 0:02:37.2]} 6. O-O {[%clk 0:02:59.1]} 6... c5 {[%clk
0:02:22.3]} 7. dxc5 {[%clk 0:03:00]} 7... Qxd1 {[%clk 0:02:19.9]} 8. Rxd1 {[%clk
0:02:59.5]} 8... Bxc5 {[%clk 0:02:19.8]} 9. Be2 {[%clk 0:02:52.4]} 9... Ke7
{[%clk 0:02:05.3]} 10. Ne5 {[%clk 0:02:36.4]} 10... Nbd7 {[%clk 0:02:02]} 11.
Nd3 {[%clk 0:02:35.8]} 11... Bd6 {[%clk 0:01:55]} 12. Nd2 {[%clk 0:02:30.1]}
12... b5 {[%clk 0:01:54.1]} 13. a4 {[%clk 0:02:06.6]} 13... Bb7 {[%clk
0:01:48.5]} 14. f3 {[%clk 0:01:50.5]} 14... Rhc8 {[%clk 0:01:45.4]} 15. axb5
{[%clk 0:01:44.7]} 15... axb5 {[%clk 0:01:44.6]} 16. Rxa8 {[%clk 0:01:45.6]}
16... Bxa8 {[%clk 0:01:43.2]} 17. Nb3 {[%clk 0:01:26.4]} 17... Rc2 {[%clk
0:01:40]} 18. Rd2 {[%clk 0:01:20.5]} 18... Rc8 {[%clk 0:01:35.9]} 19. e4 {[%clk
0:01:13.4]} 19... Ne5 {[%clk 0:01:28.4]} 20. Nxe5 {[%clk 0:00:57.5]} 20... Bxe5
{[%clk 0:01:28]} 21. Rd1 {[%clk 0:00:45.7]} 21... b4 {[%clk 0:01:23.5]} 22. Bb5
{[%clk 0:00:21.8]} 22... Bc6 {[%clk 0:01:12.9]} 23. Bxc6 {[%clk 0:00:20]} 23...
Rxc6 {[%clk 0:01:13.8]} 24. g3 {[%clk 0:00:17.7]} 24... Rc2 {[%clk 0:01:08.8]}
25. Rd2 {[%clk 0:00:12.5]} 25... Rxd2 {[%clk 0:01:06.8]} 26. Bxd2 {[%clk
0:00:11]} 26... Bxb2 {[%clk 0:01:05.9]} 27. Bxb4+ {[%clk 0:00:11.1]} 27... Kd7
{[%clk 0:01:06.3]} 28. Kf2 {[%clk 0:00:07.3]} 28... Kc6 {[%clk 0:01:06.5]} 29.
Ke3 {[%clk 0:00:06.6]} 29... Kb5 {[%clk 0:01:06.7]} 30. Bf8 {[%clk 0:00:06.4]}
30... Nd7 {[%clk 0:01:06.5]} 31. Be7 {[%clk 0:00:04.3]} 31... Kc4 {[%clk
0:01:06.1]} 32. Na5+ {[%clk 0:00:02.6]} 32... Kc3 {[%clk 0:01:04.5]} 33. Nc6
{[%clk 0:00:02.5]} 33... Bc1+ {[%clk 0:01:02.9]} 34. Ke2 {[%clk 0:00:02.5]}
34... Nb6 {[%clk 0:01:02.1]} 35. Nd8 {[%clk 0:00:01.6]} 35... f6 {[%clk
0:00:59.6]} 36. Nxe6 {[%clk 0:00:01.5]} 36... Nc8 {[%clk 0:00:58.2]} 37. Bf8
{[%clk 0:00:01.2]} 37... g6 {[%clk 0:00:57.6]} 38. Bg7 {[%clk 0:00:01.5]} 38...
Kc2 {[%clk 0:00:56]} 39. Bxf6 {[%clk 0:00:01.6]} 39... Nd6 {[%clk 0:00:56.5]}
40. e5 {[%clk 0:00:01.8]} 40... Nb5 {[%clk 0:00:56.1]} 41. Nf4 {[%clk
0:00:01.2]} 41... Nc3+ {[%clk 0:00:56.2]} 0-1

[Event "*** SCC Grand Prix: Titled Tuesday Blitz"]
[Site "Chess.com"]
[Date "2020.09.08"]
[Round "7"]
[White "JesseKraai"]
[Black "AniJak"]
[Result "1-0"]
[WhiteElo "2515"]
[BlackElo "2357"]
[TimeControl "180+1"]
[EndTime "11:18:16 PDT"]
[Termination "JesseKraai won by resignation"]

1. Nf3 {[%clk 0:03:00.9]} 1... d5 {[%clk 0:02:59]} 2. c4 {[%clk 0:03:00.7]} 2...
c6 {[%clk 0:02:58.1]} 3. e3 {[%clk 0:02:58.5]} 3... Nf6 {[%clk 0:02:57.9]} 4.
Nc3 {[%clk 0:02:58.7]} 4... e6 {[%clk 0:02:57.7]} 5. b3 {[%clk 0:02:58.7]} 5...
Bd6 {[%clk 0:02:57.1]} 6. Bb2 {[%clk 0:02:59.1]} 6... O-O {[%clk 0:02:57]} 7.
Qc2 {[%clk 0:02:59]} 7... Nbd7 {[%clk 0:02:56.1]} 8. g4 {[%clk 0:02:57.9]} 8...
e5 {[%clk 0:02:53.1]} 9. g5 {[%clk 0:02:57.1]} 9... Ne4 {[%clk 0:02:36.8]} 10.
Nxe4 {[%clk 0:02:53.5]} 10... dxe4 {[%clk 0:02:37.7]} 11. Qxe4 {[%clk 0:02:53]}
11... Nc5 {[%clk 0:02:36.2]} 12. Qc2 {[%clk 0:02:38.4]} 12... e4 {[%clk
0:02:33.2]} 13. Nd4 {[%clk 0:02:34.5]} 13... Qxg5 {[%clk 0:02:28.5]} 14. b4
{[%clk 0:02:21.8]} 14... Nd3+ {[%clk 0:02:17.1]} 15. Bxd3 {[%clk 0:02:20.9]}
15... exd3 {[%clk 0:02:18]} 16. Qxd3 {[%clk 0:02:21.1]} 16... Bxb4 {[%clk
0:02:08.9]} 17. O-O-O {[%clk 0:02:19.8]} 17... Qa5 {[%clk 0:02:00.6]} 18. Rhg1
{[%clk 0:02:09.4]} 18... g6 {[%clk 0:01:52.5]} 19. h4 {[%clk 0:01:15.4]} 19...
Qxa2 {[%clk 0:01:50.6]} 20. h5 {[%clk 0:01:10.8]} 20... b5 {[%clk 0:01:03.9]}
21. hxg6 {[%clk 0:01:06.7]} 21... fxg6 {[%clk 0:01:01]} 22. Rxg6+ {[%clk
0:00:55.4]} 22... Kf7 {[%clk 0:01:00.7]} 23. Nxc6 {[%clk 0:00:20.3]} 23... Qxc4+
{[%clk 0:00:42]} 24. Qxc4+ {[%clk 0:00:19.4]} 24... bxc4 {[%clk 0:00:42.9]} 25.
Rh6 {[%clk 0:00:16.2]} 25... Bf5 {[%clk 0:00:36.6]} 26. Nxb4 {[%clk 0:00:15.2]}
26... Bg6 {[%clk 0:00:24.5]} 27. Rh4 {[%clk 0:00:14.3]} 27... a5 {[%clk
0:00:24.1]} 28. Rf4+ {[%clk 0:00:14.2]} 28... Ke6 {[%clk 0:00:20]} 29. Nc6
{[%clk 0:00:14.4]} 29... Rxf4 {[%clk 0:00:18.6]} 30. exf4 {[%clk 0:00:14.8]}
30... Rc8 {[%clk 0:00:18.7]} 31. Re1+ {[%clk 0:00:14.5]} 31... Kf5 {[%clk
0:00:18.5]} 32. Ne7+ {[%clk 0:00:14.4]} 32... Kxf4 {[%clk 0:00:18.8]} 33. Nxc8
{[%clk 0:00:15.1]} 1-0

[Event "*** SCC Grand Prix: Titled Tuesday Blitz"]
[Site "Chess.com"]
[Date "2020.09.08"]
[Round "7"]
[White "maxip32"]
[Black "Schandenfreude"]
[Result "1/2-1/2"]
[WhiteElo "2386"]
[BlackElo "2517"]
[TimeControl "180+1"]
[EndTime "11:18:17 PDT"]
[Termination "Game drawn by repetition"]

1. e4 {[%clk 0:03:00.9]} 1... c5 {[%clk 0:02:56.8]} 2. Nf3 {[%clk 0:03:00.6]}
2... d6 {[%clk 0:02:56]} 3. d4 {[%clk 0:03:00.5]} 3... cxd4 {[%clk 0:02:56.9]}
4. Nxd4 {[%clk 0:03:01.1]} 4... Nf6 {[%clk 0:02:57.1]} 5. Nc3 {[%clk 0:03:01.7]}
5... a6 {[%clk 0:02:57.4]} 6. Be2 {[%clk 0:03:01.1]} 6... e5 {[%clk 0:02:54]} 7.
Nb3 {[%clk 0:03:01]} 7... Be6 {[%clk 0:02:53.5]} 8. f4 {[%clk 0:03:00.6]} 8...
Qc7 {[%clk 0:02:52.4]} 9. O-O {[%clk 0:02:55.7]} 9... Be7 {[%clk 0:02:48.5]} 10.
a4 {[%clk 0:02:49]} 10... Nbd7 {[%clk 0:02:46.7]} 11. f5 {[%clk 0:02:45.5]}
11... Bc4 {[%clk 0:02:45.7]} 12. Bxc4 {[%clk 0:02:42.1]} 12... Qxc4 {[%clk
0:02:45.8]} 13. Qd3 {[%clk 0:02:42.9]} 13... Rc8 {[%clk 0:02:44.2]} 14. Na5
{[%clk 0:02:37.7]} 14... Qxd3 {[%clk 0:02:39]} 15. cxd3 {[%clk 0:02:37.2]} 15...
Nc5 {[%clk 0:02:38.7]} 16. Rf3 {[%clk 0:02:26.8]} 16... O-O {[%clk 0:02:20.9]}
17. Bg5 {[%clk 0:01:59.4]} 17... b6 {[%clk 0:01:46.5]} 18. Nc4 {[%clk 0:01:55]}
18... Nb3 {[%clk 0:00:55.3]} 19. Rd1 {[%clk 0:01:42.1]} 19... Nd4 {[%clk
0:00:53.8]} 20. Rf2 {[%clk 0:01:36.2]} 20... Rc6 {[%clk 0:00:48.1]} 21. Bxf6
{[%clk 0:01:35.7]} 21... Bxf6 {[%clk 0:00:48.2]} 22. Nd5 {[%clk 0:01:36.3]}
22... b5 {[%clk 0:00:44.5]} 23. axb5 {[%clk 0:01:35]} 23... axb5 {[%clk
0:00:45]} 24. Nxf6+ {[%clk 0:01:33.2]} 24... gxf6 {[%clk 0:00:43.6]} 25. Ne3
{[%clk 0:01:34.1]} 25... Ra8 {[%clk 0:00:31.9]} 26. Nd5 {[%clk 0:01:33.3]} 26...
Kg7 {[%clk 0:00:31.7]} 27. g4 {[%clk 0:01:21.6]} 27... h6 {[%clk 0:00:30.9]} 28.
h4 {[%clk 0:01:20.3]} 28... Rc2 {[%clk 0:00:30.7]} 29. Rxc2 {[%clk 0:01:18]}
29... Nxc2 {[%clk 0:00:31]} 30. Rd2 {[%clk 0:01:08.6]} 30... Ra1+ {[%clk
0:00:28.2]} 31. Kf2 {[%clk 0:01:06.8]} 31... Nd4 {[%clk 0:00:28.3]} 32. Kg2
{[%clk 0:00:44.9]} 32... Rb1 {[%clk 0:00:21.8]} 33. Nc3 {[%clk 0:00:42.9]} 33...
Rc1 {[%clk 0:00:17.3]} 34. Nd5 {[%clk 0:00:38.1]} 34... Rb1 {[%clk 0:00:16.8]}
35. Ne7 {[%clk 0:00:31.1]} 35... Rc1 {[%clk 0:00:14]} 36. Nd5 {[%clk 0:00:30]}
36... Rb1 {[%clk 0:00:14]} 1/2-1/2